[Event "Titled Tuesday Blitz August 24 2021"]
[White "Sjugirov, Sanan"]
[Black "Quintiliano Pinto, Renato R."]
[WhiteFideId "4189302"]
[BlackFideId "2117568"]
[WhiteElo "2472"]
[BlackElo "2439"]
[Result "1-0"]
[Round "04"]
[TimeControl "180+1"]
[Date "2021.08.24"]
[WhiteClock "0:00:04"]
[BlackClock "0:00:15"]

1. d4 {[%clk 0:03:00]}  Nf6 {[%clk 0:02:56]} 2. c4 {[%clk 0:03:00]}  e6 {[%clk 0:02:55]} 3. Nf3 {[%clk 0:03:00]}  d5 {[%clk 0:02:55]} 4. g3 {[%clk 0:02:58]}  Be7 {[%clk 0:02:54]} 5. Bg2 {[%clk 0:02:58]}  O-O {[%clk 0:02:55]} 6. O-O {[%clk 0:02:58]}  dxc4 {[%clk 0:02:54]} 7. Qc2 {[%clk 0:02:58]}  a6 {[%clk 0:02:54]} 8. a4 {[%clk 0:02:57]}  c5 {[%clk 0:02:54]} 9. dxc5 {[%clk 0:02:51]}  Bxc5 {[%clk 0:02:55]} 10. Qxc4 {[%clk 0:02:42]}  b6 {[%clk 0:02:50]} 11. Ne5 {[%clk 0:02:19]}  Ra7 {[%clk 0:02:49]} 12. Nc3 {[%clk 0:02:15]}  Bb7 {[%clk 0:02:26]} 13. Bxb7 {[%clk 0:02:12]}  Rxb7 {[%clk 0:02:27]} 14. Bf4 {[%clk 0:02:03]}  Nh5 {[%clk 0:01:50]} 15. Rfd1 {[%clk 0:01:55]}  Qc8 {[%clk 0:01:50]} 16. Qe4 {[%clk 0:01:47]}  Nxf4 {[%clk 0:01:41]} 17. Qxf4 {[%clk 0:01:40]}  Nd7 {[%clk 0:01:30]} 18. Ne4 {[%clk 0:01:33]}  Nxe5 {[%clk 0:01:19]} 19. Qxe5 {[%clk 0:01:34]}  Rc7 {[%clk 0:01:19]} 20. Rd3 {[%clk 0:01:04]}  f6 {[%clk 0:01:12]} 21. Qf4 {[%clk 0:00:54]}  e5 {[%clk 0:01:07]} 22. Qd2 {[%clk 0:00:41]}  Bd4 {[%clk 0:01:06]} 23. Nc3 {[%clk 0:00:13]}  Qb7 {[%clk 0:00:31]} 24. Rd1 {[%clk 0:00:09]}  h6 {[%clk 0:00:30]} 25. e3 {[%clk 0:00:06]}  Bxc3 {[%clk 0:00:30]} 26. Rxc3 {[%clk 0:00:07]}  Rxc3 {[%clk 0:00:30]} 27. Qxc3 {[%clk 0:00:07]}  Rc8 {[%clk 0:00:25]} 28. Qb3+ {[%clk 0:00:06]}  Kh8 {[%clk 0:00:25]} 29. Qe6 {[%clk 0:00:06]}  Kh7 {[%clk 0:00:17]} 30. h4 {[%clk 0:00:05]}  b5 {[%clk 0:00:16]} 31. a5 {[%clk 0:00:05]}  Qc6 {[%clk 0:00:15]} 32. Qf5+ {[%clk 0:00:05]}  Kh8 {[%clk 0:00:16]} 33. h5 {[%clk 0:00:05]}  Qc2 {[%clk 0:00:15]} 34. Rd8+ {[%clk 0:00:04]} 1-0


[Site "https://www.chess.com"]

[Event "Titled Tuesday Blitz August 24 2021"]
[White "Starozhilov, Leonid"]
[Black "Martinez Reyes, Pedro Ramon"]
[WhiteFideId "14106752"]
[BlackFideId "3901807"]
[WhiteElo "2414"]
[BlackElo "2398"]
[Result "1-0"]
[Round "04"]
[TimeControl "180+1"]
[Date "2021.08.24"]
[WhiteClock "0:01:10"]
[BlackClock "0:00:07"]

1. e4 {[%clk 0:03:00]}  c6 {[%clk 0:02:54]} 2. d3 {[%clk 0:02:59]}  d5 {[%clk 0:02:54]} 3. Nd2 {[%clk 0:03:00]}  e5 {[%clk 0:02:47]} 4. Ngf3 {[%clk 0:02:59]}  Bd6 {[%clk 0:02:46]} 5. d4 {[%clk 0:02:59]}  exd4 {[%clk 0:02:42]} 6. exd5 {[%clk 0:02:59]}  Nf6 {[%clk 0:02:43]} 7. dxc6 {[%clk 0:02:47]}  Nxc6 {[%clk 0:02:43]} 8. Be2 {[%clk 0:02:41]}  O-O {[%clk 0:02:41]} 9. O-O {[%clk 0:02:41]}  Bf5 {[%clk 0:02:25]} 10. Nb3 {[%clk 0:02:40]}  Qc7 {[%clk 0:02:02]} 11. Bg5 {[%clk 0:02:17]}  Ne4 {[%clk 0:02:00]} 12. Bh4 {[%clk 0:02:18]}  g5 {[%clk 0:01:20]} 13. Bg3 {[%clk 0:02:17]}  Rad8 {[%clk 0:01:07]} 14. Bd3 {[%clk 0:02:17]}  Bg6 {[%clk 0:00:45]} 15. Bxe4 {[%clk 0:02:06]}  Bxe4 {[%clk 0:00:42]} 16. Nxg5 {[%clk 0:02:06]}  Bg6 {[%clk 0:00:39]} 17. Qd2 {[%clk 0:01:45]}  Bxg3 {[%clk 0:00:36]} 18. hxg3 {[%clk 0:01:45]}  Ne5 {[%clk 0:00:33]} 19. Nxd4 {[%clk 0:01:27]}  Nc4 {[%clk 0:00:28]} 20. Qc3 {[%clk 0:01:27]}  Rc8 {[%clk 0:00:16]} 21. b3 {[%clk 0:01:15]}  Qe5 {[%clk 0:00:12]} 22. Ngf3 {[%clk 0:01:13]}  Na3 {[%clk 0:00:07]} 23. Qxc8 {[%clk 0:01:10]} 1-0


[Site "https://www.chess.com"]

[Event "Titled Tuesday Blitz August 24 2021"]
[White "Suder, Jakub"]
[Black "Khusnutdinov, Rustam"]
[WhiteFideId "1195310"]
[BlackFideId "13701703"]
[WhiteElo "2085"]
[BlackElo "2571"]
[Result "0-1"]
[Round "04"]
[TimeControl "180+1"]
[Date "2021.08.24"]
[WhiteClock "0:00:06"]
[BlackClock "0:01:19"]

1. d4 {[%clk 0:03:00]}  Nf6 {[%clk 0:02:57]} 2. c4 {[%clk 0:03:01]}  c5 {[%clk 0:02:58]} 3. d5 {[%clk 0:03:00]}  e6 {[%clk 0:02:58]} 4. Nc3 {[%clk 0:03:00]}  g6 {[%clk 0:02:57]} 5. e4 {[%clk 0:03:00]}  d6 {[%clk 0:02:57]} 6. Bd3 {[%clk 0:03:00]}  Bg7 {[%clk 0:02:58]} 7. Nge2 {[%clk 0:02:58]}  O-O {[%clk 0:02:58]} 8. O-O {[%clk 0:02:58]}  Nbd7 {[%clk 0:02:55]} 9. f4 {[%clk 0:02:54]}  Re8 {[%clk 0:02:43]} 10. Ng3 {[%clk 0:02:52]}  a6 {[%clk 0:02:38]} 11. a4 {[%clk 0:02:52]}  exd5 {[%clk 0:02:37]} 12. cxd5 {[%clk 0:02:51]}  Qc7 {[%clk 0:02:35]} 13. Qf3 {[%clk 0:02:46]}  c4 {[%clk 0:02:34]} 14. Bc2 {[%clk 0:02:46]}  Nc5 {[%clk 0:02:30]} 15. h3 {[%clk 0:02:43]}  Nfd7 {[%clk 0:02:21]} 16. Kh1 {[%clk 0:02:39]}  Rb8 {[%clk 0:02:21]} 17. h4 {[%clk 0:02:31]}  b5 {[%clk 0:02:20]} 18. axb5 {[%clk 0:02:31]}  axb5 {[%clk 0:02:20]} 19. h5 {[%clk 0:02:32]}  b4 {[%clk 0:02:20]} 20. Nce2 {[%clk 0:02:30]}  Qd8 {[%clk 0:02:08]} 21. Kg1 {[%clk 0:02:11]}  Qh4 {[%clk 0:02:06]} 22. hxg6 {[%clk 0:02:08]}  fxg6 {[%clk 0:02:03]} 23. Nh1 {[%clk 0:02:02]}  Nf6 {[%clk 0:02:01]} 24. Nf2 {[%clk 0:01:37]}  Ng4 {[%clk 0:01:51]} 25. Nh3 {[%clk 0:01:29]}  c3 {[%clk 0:01:39]} 26. Ra7 {[%clk 0:01:18]}  b3 {[%clk 0:01:34]} 27. Bd3 {[%clk 0:01:06]}  c2 {[%clk 0:01:24]} 28. e5 {[%clk 0:00:28]}  Nxd3 {[%clk 0:01:21]} 29. Qxd3 {[%clk 0:00:27]}  Bf5 {[%clk 0:01:21]} 30. Qc4 {[%clk 0:00:18]}  Nxe5 {[%clk 0:01:21]} 31. Qc7 {[%clk 0:00:15]}  Nd7 {[%clk 0:01:21]} 32. Nc3 {[%clk 0:00:06]}  Bxh3 {[%clk 0:01:18]} 33. gxh3 {[%clk 0:00:05]}  Qg3+ {[%clk 0:01:18]} 34. Kh1 {[%clk 0:00:05]}  Qxh3+ {[%clk 0:01:18]} 35. Kg1 {[%clk 0:00:06]}  Bd4+ {[%clk 0:01:19]} 0-1


[Site "https://www.chess.com"]

[Event "Titled Tuesday Blitz August 24 2021"]
[White "Terry, Renato"]
[Black "Ozen, Bahadir"]
[WhiteFideId "3803457"]
[BlackFideId "6337058"]
[WhiteElo "2581"]
[BlackElo "2503"]
[Result "1-0"]
[Round "04"]
[TimeControl "180+1"]
[Date "2021.08.24"]
[WhiteClock "0:00:06"]
[BlackClock "0:00:03"]

1. d4 {[%clk 0:03:00]}  Nf6 {[%clk 0:02:59]} 2. Bg5 {[%clk 0:02:59]}  d5 {[%clk 0:02:59]} 3. Nc3 {[%clk 0:02:57]}  Nbd7 {[%clk 0:02:45]} 4. Qd2 {[%clk 0:02:35]}  h6 {[%clk 0:02:34]} 5. Bh4 {[%clk 0:02:32]}  e6 {[%clk 0:02:33]} 6. f3 {[%clk 0:02:31]}  c5 {[%clk 0:02:26]} 7. e3 {[%clk 0:02:29]}  Be7 {[%clk 0:02:22]} 8. Nge2 {[%clk 0:02:11]}  a6 {[%clk 0:02:17]} 9. g4 {[%clk 0:02:07]}  b5 {[%clk 0:02:12]} 10. Bg3 {[%clk 0:02:04]}  Bb7 {[%clk 0:02:11]} 11. Nf4 {[%clk 0:02:00]}  Rc8 {[%clk 0:01:58]} 12. Nd3 {[%clk 0:01:42]}  Qb6 {[%clk 0:01:32]} 13. Ne2 {[%clk 0:01:41]}  a5 {[%clk 0:01:03]} 14. a3 {[%clk 0:01:36]}  Ba6 {[%clk 0:01:03]} 15. Bg2 {[%clk 0:01:32]}  b4 {[%clk 0:01:01]} 16. axb4 {[%clk 0:01:32]}  axb4 {[%clk 0:01:02]} 17. O-O {[%clk 0:01:14]}  O-O {[%clk 0:00:58]} 18. Kh1 {[%clk 0:01:12]}  c4 {[%clk 0:00:49]} 19. Ne5 {[%clk 0:01:11]}  c3 {[%clk 0:00:49]} 20. bxc3 {[%clk 0:01:11]}  bxc3 {[%clk 0:00:43]} 21. Qd1 {[%clk 0:01:09]}  Nxe5 {[%clk 0:00:43]} 22. dxe5 {[%clk 0:01:06]}  Nd7 {[%clk 0:00:43]} 23. Re1 {[%clk 0:01:05]}  Rfd8 {[%clk 0:00:35]} 24. Nd4 {[%clk 0:01:04]}  Bc4 {[%clk 0:00:30]} 25. Rb1 {[%clk 0:00:57]}  Qa7 {[%clk 0:00:30]} 26. f4 {[%clk 0:00:54]}  Nc5 {[%clk 0:00:30]} 27. f5 {[%clk 0:00:45]}  Ne4 {[%clk 0:00:28]} 28. fxe6 {[%clk 0:00:43]}  Nxg3+ {[%clk 0:00:27]} 29. hxg3 {[%clk 0:00:43]}  fxe6 {[%clk 0:00:28]} 30. Nxe6 {[%clk 0:00:42]}  Re8 {[%clk 0:00:24]} 31. Bxd5 {[%clk 0:00:40]}  Kh8 {[%clk 0:00:25]} 32. Rb7 {[%clk 0:00:25]}  Qa2 {[%clk 0:00:22]} 33. e4 {[%clk 0:00:21]}  Qa6 {[%clk 0:00:16]} 34. Rc7 {[%clk 0:00:14]}  Ba3 {[%clk 0:00:08]} 35. Rxc8 {[%clk 0:00:09]}  Rxc8 {[%clk 0:00:08]} 36. g5 {[%clk 0:00:07]}  Qxe6 {[%clk 0:00:02]} 37. Bxe6 {[%clk 0:00:07]}  Bxe6 {[%clk 0:00:03]} 38. gxh6 {[%clk 0:00:06]}  g6 {[%clk 0:00:03]} 39. Qf3 {[%clk 0:00:05]}  Rf8 {[%clk 0:00:03]} 40. Qxc3 {[%clk 0:00:05]}  Be7 {[%clk 0:00:03]} 41. Kg2 {[%clk 0:00:06]}  Kh7 {[%clk 0:00:03]} 42. Qc7 {[%clk 0:00:05]}  Rf7 {[%clk 0:00:03]} 43. Rf1 {[%clk 0:00:06]} 1-0


[Site "https://www.chess.com"]

[Event "Titled Tuesday Blitz August 24 2021"]
[White "Tikhonov, Viacheslav"]
[Black "Materia, Marco"]
[WhiteFideId "44196407"]
[BlackFideId "45150451"]
[WhiteElo "1773"]
[BlackElo "2683"]
[Result "1-0"]
[Round "04"]
[TimeControl "180+1"]
[Date "2021.08.24"]
[WhiteClock "0:01:59"]
[BlackClock "0:01:16"]

1. c4 {[%clk 0:03:00]}  e6 {[%clk 0:02:58]} 2. Nf3 {[%clk 0:03:00]}  Nf6 {[%clk 0:02:57]} 3. b3 {[%clk 0:03:00]}  d5 {[%clk 0:02:56]} 4. Bb2 {[%clk 0:03:01]}  b6 {[%clk 0:02:55]} 5. g3 {[%clk 0:03:00]}  Bb7 {[%clk 0:02:56]} 6. Bg2 {[%clk 0:03:00]}  Bd6 {[%clk 0:02:56]} 7. O-O {[%clk 0:03:00]}  O-O {[%clk 0:02:55]} 8. Nc3 {[%clk 0:02:59]}  a6 {[%clk 0:02:55]} 9. e3 {[%clk 0:02:54]}  Nbd7 {[%clk 0:02:56]} 10. Qc2 {[%clk 0:02:52]}  Qe7 {[%clk 0:02:52]} 11. Rac1 {[%clk 0:02:50]}  Rad8 {[%clk 0:02:49]} 12. cxd5 {[%clk 0:02:49]}  exd5 {[%clk 0:02:48]} 13. Ne2 {[%clk 0:02:47]}  Rfe8 {[%clk 0:02:45]} 14. Ned4 {[%clk 0:02:44]}  Qf8 {[%clk 0:02:33]} 15. Bh3 {[%clk 0:02:27]}  Ne5 {[%clk 0:02:29]} 16. Nxe5 {[%clk 0:02:18]}  Bxe5 {[%clk 0:02:29]} 17. Nc6 {[%clk 0:02:16]}  Bxc6 {[%clk 0:02:11]} 18. Bxe5 {[%clk 0:02:15]}  Bb5 {[%clk 0:02:08]} 19. Bxf6 {[%clk 0:02:13]}  gxf6 {[%clk 0:02:09]} 20. d3 {[%clk 0:02:09]}  c5 {[%clk 0:02:06]} 21. a4 {[%clk 0:02:09]}  Bd7 {[%clk 0:02:05]} 22. Bxd7 {[%clk 0:02:09]}  Rxd7 {[%clk 0:02:05]} 23. d4 {[%clk 0:02:09]}  cxd4 {[%clk 0:01:53]} 24. exd4 {[%clk 0:02:10]}  Re4 {[%clk 0:01:51]} 25. Rfd1 {[%clk 0:02:11]}  Qb4 {[%clk 0:01:49]} 26. Qc8+ {[%clk 0:02:10]}  Kg7 {[%clk 0:01:43]} 27. Qxd7 {[%clk 0:02:10]}  Qxb3 {[%clk 0:01:40]} 28. Rf1 {[%clk 0:02:05]}  Rxd4 {[%clk 0:01:39]} 29. Rc7 {[%clk 0:02:04]}  Kh6 {[%clk 0:01:23]} 30. Qxf7 {[%clk 0:02:04]}  Kg5 {[%clk 0:01:22]} 31. Qxh7 {[%clk 0:02:01]}  Kg4 {[%clk 0:01:15]} 32. Qh4+ {[%clk 0:01:58]}  Kf3 {[%clk 0:01:16]} 33. Qxd4 {[%clk 0:01:59]} 1-0


[Site "https://www.chess.com"]

[Event "Titled Tuesday Blitz August 24 2021"]
[White "Tregubov, Pavel V."]
[Black "Lopez Gracia, Fernando"]
[WhiteFideId "4115341"]
[BlackFideId "2207184"]
[WhiteElo "2423"]
[BlackElo "2394"]
[Result "1-0"]
[Round "04"]
[TimeControl "180+1"]
[Date "2021.08.24"]
[WhiteClock "0:02:03"]
[BlackClock "0:00:15"]

1. e4 {[%clk 0:03:00]}  e5 {[%clk 0:02:54]} 2. Nf3 {[%clk 0:03:00]}  Nc6 {[%clk 0:02:54]} 3. Bb5 {[%clk 0:02:59]}  a6 {[%clk 0:02:55]} 4. Ba4 {[%clk 0:02:58]}  Nf6 {[%clk 0:02:55]} 5. d4 {[%clk 0:02:59]}  exd4 {[%clk 0:02:49]} 6. O-O {[%clk 0:02:54]}  Nxe4 {[%clk 0:02:46]} 7. Re1 {[%clk 0:02:46]}  d5 {[%clk 0:02:46]} 8. Nxd4 {[%clk 0:02:46]}  Bc5 {[%clk 0:01:29]} 9. Bxc6+ {[%clk 0:02:35]}  bxc6 {[%clk 0:01:28]} 10. f3 {[%clk 0:02:35]}  Qf6 {[%clk 0:01:11]} 11. c3 {[%clk 0:02:33]}  O-O {[%clk 0:00:44]} 12. fxe4 {[%clk 0:02:32]}  dxe4 {[%clk 0:00:39]} 13. Be3 {[%clk 0:02:32]}  Bd6 {[%clk 0:00:37]} 14. Nd2 {[%clk 0:02:31]}  c5 {[%clk 0:00:36]} 15. Ne2 {[%clk 0:02:25]}  Re8 {[%clk 0:00:28]} 16. Ng3 {[%clk 0:02:23]}  Qg6 {[%clk 0:00:26]} 17. Qh5 {[%clk 0:02:19]}  Bxg3 {[%clk 0:00:24]} 18. Qxg6 {[%clk 0:02:19]}  Bxh2+ {[%clk 0:00:22]} 19. Kxh2 {[%clk 0:02:19]}  hxg6 {[%clk 0:00:22]} 20. Bxc5 {[%clk 0:02:18]}  Bb7 {[%clk 0:00:20]} 21. Nc4 {[%clk 0:02:15]}  Rad8 {[%clk 0:00:17]} 22. Rad1 {[%clk 0:02:14]}  f5 {[%clk 0:00:17]} 23. Be3 {[%clk 0:02:07]}  Kf7 {[%clk 0:00:17]} 24. Bf4 {[%clk 0:02:06]}  c5 {[%clk 0:00:16]} 25. Nd6+ {[%clk 0:02:05]}  Ke6 {[%clk 0:00:15]} 26. Nxb7 {[%clk 0:02:03]} 1-0


[Site "https://www.chess.com"]

[Event "Titled Tuesday Blitz August 24 2021"]
[White "Tsaruk, Maksim"]
[Black "Nesterov, Arseniy"]
[WhiteFideId "13511173"]
[BlackFideId "24198455"]
[WhiteElo "2184"]
[BlackElo "2477"]
[Result "0-1"]
[Round "04"]
[TimeControl "180+1"]
[Date "2021.08.24"]
[WhiteClock "0:00:04"]
[BlackClock "0:00:09"]

1. e4 {[%clk 0:03:00]}  e5 {[%clk 0:03:00]} 2. Nf3 {[%clk 0:03:01]}  Nc6 {[%clk 0:03:00]} 3. Bb5 {[%clk 0:03:02]}  a6 {[%clk 0:03:00]} 4. Ba4 {[%clk 0:03:02]}  b5 {[%clk 0:03:00]} 5. Bb3 {[%clk 0:03:02]}  Na5 {[%clk 0:03:00]} 6. O-O {[%clk 0:02:56]}  d6 {[%clk 0:03:00]} 7. d4 {[%clk 0:02:54]}  exd4 {[%clk 0:03:01]} 8. Nxd4 {[%clk 0:02:53]}  Bb7 {[%clk 0:03:01]} 9. Re1 {[%clk 0:02:49]}  c5 {[%clk 0:03:00]} 10. Nf5 {[%clk 0:01:33]}  c4 {[%clk 0:02:59]} 11. Bf4 {[%clk 0:01:33]}  cxb3 {[%clk 0:02:54]} 12. axb3 {[%clk 0:01:34]}  Nc6 {[%clk 0:02:54]} 13. Bxd6 {[%clk 0:01:33]}  g6 {[%clk 0:02:41]} 14. Bxf8 {[%clk 0:00:28]}  Qxd1 {[%clk 0:02:37]} 15. Rxd1 {[%clk 0:00:28]}  Kxf8 {[%clk 0:02:37]} 16. Nd6 {[%clk 0:00:29]}  Nd8 {[%clk 0:02:28]} 17. Nc3 {[%clk 0:00:25]}  Bc6 {[%clk 0:02:18]} 18. Nd5 {[%clk 0:00:15]}  Bxd5 {[%clk 0:02:15]} 19. exd5 {[%clk 0:00:14]}  b4 {[%clk 0:02:03]} 20. c4 {[%clk 0:00:12]}  bxc3 {[%clk 0:02:03]} 21. bxc3 {[%clk 0:00:13]}  Nf6 {[%clk 0:02:01]} 22. c4 {[%clk 0:00:13]}  Kg7 {[%clk 0:01:35]} 23. c5 {[%clk 0:00:13]}  Ne8 {[%clk 0:01:03]} 24. Nxe8+ {[%clk 0:00:12]}  Rxe8 {[%clk 0:01:04]} 25. c6 {[%clk 0:00:13]}  a5 {[%clk 0:00:25]} 26. c7 {[%clk 0:00:13]}  Nb7 {[%clk 0:00:24]} 27. d6 {[%clk 0:00:14]}  Rec8 {[%clk 0:00:20]} 28. Rac1 {[%clk 0:00:13]}  Nxd6 {[%clk 0:00:17]} 29. Rxd6 {[%clk 0:00:14]}  Ra7 {[%clk 0:00:16]} 30. Rd7 {[%clk 0:00:12]}  Rb7 {[%clk 0:00:13]} 31. g3 {[%clk 0:00:12]}  Kf6 {[%clk 0:00:10]} 32. Rc6+ {[%clk 0:00:12]}  Kg7 {[%clk 0:00:10]} 33. g4 {[%clk 0:00:09]}  h6 {[%clk 0:00:10]} 34. Kg2 {[%clk 0:00:09]}  g5 {[%clk 0:00:10]} 35. Kg3 {[%clk 0:00:09]}  Rxb3+ {[%clk 0:00:10]} 36. f3 {[%clk 0:00:10]}  Rb7 {[%clk 0:00:10]} 37. h4 {[%clk 0:00:09]}  Ra7 {[%clk 0:00:08]} 38. hxg5 {[%clk 0:00:09]}  hxg5 {[%clk 0:00:09]} 39. Rc5 {[%clk 0:00:10]}  Kg6 {[%clk 0:00:09]} 40. Rc6+ {[%clk 0:00:10]}  Kg7 {[%clk 0:00:09]} 41. Rc5 {[%clk 0:00:09]}  Kg6 {[%clk 0:00:10]} 42. Rd6+ {[%clk 0:00:06]}  f6 {[%clk 0:00:06]} 43. Rcc6 {[%clk 0:00:06]}  Rcxc7 {[%clk 0:00:04]} 44. Rxf6+ {[%clk 0:00:07]}  Kg7 {[%clk 0:00:05]} 45. Rg6+ {[%clk 0:00:07]}  Kf7 {[%clk 0:00:05]} 46. Rxc7+ {[%clk 0:00:05]}  Rxc7 {[%clk 0:00:06]} 47. Rxg5 {[%clk 0:00:06]}  Ra7 {[%clk 0:00:07]} 48. Rc5 {[%clk 0:00:04]}  a4 {[%clk 0:00:07]} 49. Rc2 {[%clk 0:00:05]}  a3 {[%clk 0:00:07]} 50. Ra2 {[%clk 0:00:05]}  Ke6 {[%clk 0:00:07]} 51. Kf4 {[%clk 0:00:04]}  Kf6 {[%clk 0:00:07]} 52. g5+ {[%clk 0:00:04]}  Kg6 {[%clk 0:00:06]} 53. Kg4 {[%clk 0:00:05]}  Ra5 {[%clk 0:00:06]} 54. f4 {[%clk 0:00:05]}  Ra4 {[%clk 0:00:07]} 55. Kf3 {[%clk 0:00:04]}  Kf5 {[%clk 0:00:07]} 56. Ke3 {[%clk 0:00:05]}  Ra5 {[%clk 0:00:07]} 57. Kd3 {[%clk 0:00:05]}  Kxf4 {[%clk 0:00:07]} 58. g6 {[%clk 0:00:05]}  Rg5 {[%clk 0:00:07]} 59. Rxa3 {[%clk 0:00:05]}  Rg3+ {[%clk 0:00:07]} 60. Kd4 {[%clk 0:00:02]}  Rxa3 {[%clk 0:00:08]} 61. g7 {[%clk 0:00:03]}  Rg3 {[%clk 0:00:08]} 62. g8=Q {[%clk 0:00:04]}  Rxg8 {[%clk 0:00:09]} 0-1


[Site "https://www.chess.com"]

[Event "Titled Tuesday Blitz August 24 2021"]
[White "Urazayev, Arystanbek"]
[Black "Nozdrachev, Leonid"]
[WhiteFideId "13709810"]
[BlackFideId "24113433"]
[WhiteElo "2321"]
[BlackElo "2240"]
[Result "0-1"]
[Round "04"]
[TimeControl "180+1"]
[Date "2021.08.24"]
[WhiteClock "0:00:08"]
[BlackClock "0:00:24"]

1. e4 {[%clk 0:03:00]}  c6 {[%clk 0:02:58]} 2. d4 {[%clk 0:02:57]}  d5 {[%clk 0:02:58]} 3. e5 {[%clk 0:02:57]}  Bf5 {[%clk 0:02:57]} 4. Nd2 {[%clk 0:02:58]}  e6 {[%clk 0:02:55]} 5. Nb3 {[%clk 0:02:58]}  Nd7 {[%clk 0:02:52]} 6. Nf3 {[%clk 0:02:58]}  Bg6 {[%clk 0:02:49]} 7. Be2 {[%clk 0:02:58]}  a6 {[%clk 0:02:49]} 8. a4 {[%clk 0:02:56]}  c5 {[%clk 0:02:48]} 9. a5 {[%clk 0:02:50]}  c4 {[%clk 0:02:45]} 10. Nbd2 {[%clk 0:02:48]}  Bb4 {[%clk 0:02:43]} 11. c3 {[%clk 0:02:41]}  Bxa5 {[%clk 0:02:43]} 12. O-O {[%clk 0:02:36]}  Bc7 {[%clk 0:02:42]} 13. b3 {[%clk 0:02:32]}  b5 {[%clk 0:02:38]} 14. Ba3 {[%clk 0:02:32]}  Ne7 {[%clk 0:02:26]} 15. bxc4 {[%clk 0:02:28]}  dxc4 {[%clk 0:02:20]} 16. Nh4 {[%clk 0:02:29]}  Nd5 {[%clk 0:02:16]} 17. Nxg6 {[%clk 0:02:10]}  hxg6 {[%clk 0:02:17]} 18. Qc1 {[%clk 0:01:55]}  Nf4 {[%clk 0:01:59]} 19. Bf3 {[%clk 0:01:49]}  Qh4 {[%clk 0:01:52]} 20. h3 {[%clk 0:01:39]}  Bxe5 {[%clk 0:01:17]} 21. Re1 {[%clk 0:01:04]}  Nd3 {[%clk 0:01:08]} 22. dxe5 {[%clk 0:00:53]}  Qxf2+ {[%clk 0:01:04]} 23. Kh2 {[%clk 0:00:53]}  O-O-O {[%clk 0:00:30]} 24. Kh1 {[%clk 0:00:14]}  Nxc1 {[%clk 0:00:29]} 25. Rd1 {[%clk 0:00:10]}  Nd3 {[%clk 0:00:25]} 26. Ne4 {[%clk 0:00:09]}  Rxh3+ {[%clk 0:00:24]} 27. gxh3 {[%clk 0:00:08]}  Qxf3+ {[%clk 0:00:24]} 0-1


[Site "https://www.chess.com"]

[Event "Titled Tuesday Blitz August 24 2021"]
[White "Vasli, Aref"]
[Black "Laurusas, Tomas"]
[WhiteFideId "417521"]
[BlackFideId "12803731"]
[WhiteElo "2257"]
[BlackElo "2542"]
[Result "0-1"]
[Round "04"]
[TimeControl "180+1"]
[Date "2021.08.24"]
[WhiteClock "0:00:11"]
[BlackClock "0:00:11"]

1. e4 {[%clk 0:03:00]}  e5 {[%clk 0:02:55]} 2. Nf3 {[%clk 0:03:01]}  Nf6 {[%clk 0:02:53]} 3. d3 {[%clk 0:02:58]}  Nc6 {[%clk 0:02:52]} 4. Nbd2 {[%clk 0:02:59]}  d5 {[%clk 0:02:49]} 5. Be2 {[%clk 0:02:58]}  Bc5 {[%clk 0:02:48]} 6. c3 {[%clk 0:02:57]}  a5 {[%clk 0:02:47]} 7. O-O {[%clk 0:02:57]}  O-O {[%clk 0:02:48]} 8. Qc2 {[%clk 0:02:56]}  Re8 {[%clk 0:02:48]} 9. b3 {[%clk 0:02:55]}  Ba7 {[%clk 0:02:36]} 10. a3 {[%clk 0:02:53]}  Bg4 {[%clk 0:02:35]} 11. h3 {[%clk 0:02:51]}  Bh5 {[%clk 0:02:33]} 12. Bb2 {[%clk 0:02:51]}  Qd7 {[%clk 0:02:28]} 13. b4 {[%clk 0:02:46]}  Rad8 {[%clk 0:02:21]} 14. Rfe1 {[%clk 0:02:22]}  h6 {[%clk 0:02:08]} 15. Rad1 {[%clk 0:02:11]}  Bg6 {[%clk 0:02:06]} 16. b5 {[%clk 0:01:46]}  Nb8 {[%clk 0:02:02]} 17. a4 {[%clk 0:01:42]}  Bh7 {[%clk 0:01:57]} 18. Bf1 {[%clk 0:01:41]}  Qd6 {[%clk 0:01:52]} 19. Qb3 {[%clk 0:01:32]}  Nbd7 {[%clk 0:01:50]} 20. Ba3 {[%clk 0:01:31]}  Qb6 {[%clk 0:01:47]} 21. Re2 {[%clk 0:01:03]}  Nc5 {[%clk 0:01:29]} 22. Bxc5 {[%clk 0:00:50]}  Qxc5 {[%clk 0:01:30]} 23. d4 {[%clk 0:00:50]}  exd4 {[%clk 0:01:30]} 24. cxd4 {[%clk 0:00:51]}  Qb4 {[%clk 0:01:30]} 25. e5 {[%clk 0:00:46]}  Ne4 {[%clk 0:01:29]} 26. Re3 {[%clk 0:00:39]}  c5 {[%clk 0:00:46]} 27. bxc6 {[%clk 0:00:34]}  bxc6 {[%clk 0:00:47]} 28. Qxb4 {[%clk 0:00:33]}  axb4 {[%clk 0:00:46]} 29. Nb3 {[%clk 0:00:32]}  Nc3 {[%clk 0:00:38]} 30. Rc1 {[%clk 0:00:32]}  f6 {[%clk 0:00:33]} 31. a5 {[%clk 0:00:31]}  fxe5 {[%clk 0:00:32]} 32. Nxe5 {[%clk 0:00:32]}  Re6 {[%clk 0:00:27]} 33. f4 {[%clk 0:00:30]}  Rde8 {[%clk 0:00:26]} 34. Kh2 {[%clk 0:00:29]}  Bb8 {[%clk 0:00:25]} 35. Nc5 {[%clk 0:00:28]}  R6e7 {[%clk 0:00:24]} 36. a6 {[%clk 0:00:26]}  g5 {[%clk 0:00:23]} 37. Rexc3 {[%clk 0:00:26]}  bxc3 {[%clk 0:00:23]} 38. g3 {[%clk 0:00:24]}  gxf4 {[%clk 0:00:22]} 39. gxf4 {[%clk 0:00:24]}  c2 {[%clk 0:00:18]} 40. Bd3 {[%clk 0:00:23]}  Bxd3 {[%clk 0:00:14]} 41. Ncxd3 {[%clk 0:00:24]}  Ra7 {[%clk 0:00:14]} 42. Nc5 {[%clk 0:00:19]}  Bd6 {[%clk 0:00:14]} 43. Nxc6 {[%clk 0:00:17]}  Rc7 {[%clk 0:00:14]} 44. Ne5 {[%clk 0:00:15]}  Bxc5 {[%clk 0:00:13]} 45. dxc5 {[%clk 0:00:14]}  Rxc5 {[%clk 0:00:14]} 46. Nd7 {[%clk 0:00:14]}  Rc6 {[%clk 0:00:14]} 47. a7 {[%clk 0:00:14]}  Ra8 {[%clk 0:00:13]} 48. Ne5 {[%clk 0:00:13]}  Rc7 {[%clk 0:00:13]} 49. Nd3 {[%clk 0:00:09]}  Raxa7 {[%clk 0:00:11]} 50. Nb4 {[%clk 0:00:09]}  d4 {[%clk 0:00:12]} 51. Nd5 {[%clk 0:00:09]}  Rc5 {[%clk 0:00:11]} 52. Nf6+ {[%clk 0:00:09]}  Kf7 {[%clk 0:00:12]} 53. Ne4 {[%clk 0:00:10]}  Rc6 {[%clk 0:00:12]} 54. Nf2 {[%clk 0:00:10]}  Ra3 {[%clk 0:00:11]} 55. Ng4 {[%clk 0:00:09]}  Rc5 {[%clk 0:00:10]} 56. Ne5+ {[%clk 0:00:10]}  Rxe5 {[%clk 0:00:10]} 57. fxe5 {[%clk 0:00:10]}  d3 {[%clk 0:00:11]} 58. Kg2 {[%clk 0:00:10]}  Rc3 {[%clk 0:00:11]} 59. Rxc2 {[%clk 0:00:11]}  Rxc2+ {[%clk 0:00:11]} 0-1


[Site "https://www.chess.com"]